[Event "GrandPrix_29.05"]
[Site "Chess.com"]
[Date "2020.05.29"]
[Round "4"]
[White "VerdeNotte"]
[Black "KuzubovYuriy"]
[Result "1/2-1/2"]
[WhiteElo "2629"]
[BlackElo "2536"]
[TimeControl "600+2"]
[EndTime "11:04:44 PDT"]
[Termination "Game drawn by agreement"]

1. e4 {[%clk 0:10:01.9]} 1... e5 {[%clk 0:09:56.4]} 2. Nf3 {[%clk 0:10:01.6]}
2... Nf6 {[%clk 0:09:55.8]} 3. d4 {[%clk 0:09:57.6]} 3... Nxe4 {[%clk
0:09:55.1]} 4. Bd3 {[%clk 0:09:56.1]} 4... d5 {[%clk 0:09:55.7]} 5. Nxe5 {[%clk
0:09:53.5]} 5... Nd7 {[%clk 0:09:46.9]} 6. Nxd7 {[%clk 0:09:44.9]} 6... Bxd7
{[%clk 0:09:46.5]} 7. Nc3 {[%clk 0:09:46.3]} 7... Nxc3 {[%clk 0:07:34.1]} 8.
bxc3 {[%clk 0:09:48.2]} 8... Bd6 {[%clk 0:07:33.4]} 9. Qh5 {[%clk 0:09:44.6]}
9... Qe7+ {[%clk 0:07:19.9]} 10. Be3 {[%clk 0:09:44.4]} 10... Be6 {[%clk
0:07:14.7]} 11. O-O {[%clk 0:09:35.2]} 11... O-O-O {[%clk 0:07:05.1]} 12. Rab1
{[%clk 0:09:18.4]} 12... Kb8 {[%clk 0:06:01.1]} 13. Rfe1 {[%clk 0:08:34.9]}
13... g6 {[%clk 0:04:57.6]} 14. Qh6 {[%clk 0:08:09.9]} 14... Qf8 {[%clk
0:04:25.2]} 15. a4 {[%clk 0:07:00.3]} 15... Qxh6 {[%clk 0:04:03.3]} 16. Bxh6
{[%clk 0:07:01.3]} 16... Bd7 {[%clk 0:04:00.9]} 17. a5 {[%clk 0:06:36.4]} 17...
Rhe8 {[%clk 0:03:53.7]} 18. Rxe8 {[%clk 0:06:04.6]} 18... Rxe8 {[%clk
0:03:55.6]} 19. c4 {[%clk 0:05:36.8]} 19... dxc4 {[%clk 0:03:38.5]} 20. Bxc4
{[%clk 0:05:36.8]} 20... f5 {[%clk 0:03:39.3]} 21. Bd5 {[%clk 0:04:39.2]} 21...
c6 {[%clk 0:03:35.6]} 22. Bf3 {[%clk 0:04:39.2]} 22... Bb4 {[%clk 0:03:10.5]}
23. a6 {[%clk 0:04:33]} 23... Re1+ {[%clk 0:03:09]} 24. Rxe1 {[%clk 0:04:33.6]}
24... Bxe1 {[%clk 0:03:10.9]} 25. Bf4+ {[%clk 0:04:31.1]} 25... Kc8 {[%clk
0:03:09.7]} 26. d5 {[%clk 0:04:21.7]} 26... Bc3 {[%clk 0:02:23.7]} 27. dxc6
{[%clk 0:04:10.3]} 27... Bxc6 {[%clk 0:01:40.7]} 28. Bxc6 {[%clk 0:04:09.9]}
28... bxc6 {[%clk 0:01:42.6]} 29. Be3 {[%clk 0:03:59.9]} 29... Kb8 {[%clk
0:01:41.4]} 30. h3 {[%clk 0:03:12.6]} 30... Ba5 {[%clk 0:01:34.8]} 31. g4 {[%clk
0:03:12.8]} 31... Bb6 {[%clk 0:01:00.5]} 32. gxf5 {[%clk 0:02:15.8]} 32... Bxe3
{[%clk 0:00:41.7]} 33. fxe3 {[%clk 0:02:04.4]} 33... gxf5 {[%clk 0:00:42.8]} 34.
Kf2 {[%clk 0:01:56.1]} 34... Kc7 {[%clk 0:00:41.9]} 35. Kf3 {[%clk 0:01:54.1]}
35... Kb6 {[%clk 0:00:28.8]} 36. Kf4 {[%clk 0:01:54]} 36... Kxa6 {[%clk
0:00:30.1]} 37. Kxf5 {[%clk 0:01:55.6]} 37... Kb7 {[%clk 0:00:29.9]} 38. e4
{[%clk 0:01:56.1]} 38... a5 {[%clk 0:00:27.6]} 39. e5 {[%clk 0:01:16.4]} 39...
a4 {[%clk 0:00:16.3]} 40. e6 {[%clk 0:01:09.5]} 40... a3 {[%clk 0:00:14.6]} 41.
e7 {[%clk 0:01:10.1]} 41... a2 {[%clk 0:00:15.9]} 42. e8=Q {[%clk 0:01:11.4]}
42... a1=Q {[%clk 0:00:17.1]} 43. Qe7+ {[%clk 0:00:48.2]} 43... Kb6 {[%clk
0:00:13]} 44. Qxh7 {[%clk 0:00:29.8]} 44... Qc3 {[%clk 0:00:11.7]} 45. Ke6
{[%clk 0:00:20.1]} 45... Qe3+ {[%clk 0:00:10.9]} 46. Kd7 {[%clk 0:00:18.2]}
46... Qd4+ {[%clk 0:00:06.3]} 47. Kc8 {[%clk 0:00:17.2]} 47... Qf6 {[%clk
0:00:06.7]} 48. Qc7+ {[%clk 0:00:11.5]} 48... Kc5 {[%clk 0:00:06.7]} 49. Qa5+
{[%clk 0:00:10.1]} 49... Kc4 {[%clk 0:00:07.4]} 50. Qa4+ {[%clk 0:00:08.8]}
50... Kc5 {[%clk 0:00:08.1]} 51. Qa3+ {[%clk 0:00:08.9]} 51... Kc4 {[%clk
0:00:08.6]} 52. Qd3+ {[%clk 0:00:08.4]} 52... Kc5 {[%clk 0:00:08.9]} 53. Qe3+
{[%clk 0:00:07.1]} 53... Kc4 {[%clk 0:00:08.9]} 54. Qd3+ {[%clk 0:00:06.7]}
54... Kc5 {[%clk 0:00:10.1]} 55. Qe3+ {[%clk 0:00:03]} 55... Kc4 {[%clk
0:00:10.1]} 56. Qb3+ {[%clk 0:00:04.7]} 56... Kc5 {[%clk 0:00:11.2]} 57. Kb7
{[%clk 0:00:05]} 57... Qg7+ {[%clk 0:00:11.6]} 58. Ka8 {[%clk 0:00:03.6]} 58...
Qa1+ {[%clk 0:00:11.5]} 59. Kb8 {[%clk 0:00:05]} 59... Qh8+ {[%clk 0:00:12.4]}
60. Ka7 {[%clk 0:00:06.1]} 60... Qa1+ {[%clk 0:00:13.2]} 61. Kb7 {[%clk
0:00:07.6]} 61... Qg7+ {[%clk 0:00:14]} 62. Kc8 {[%clk 0:00:08.5]} 62... Qh8+
{[%clk 0:00:14.9]} 63. Kd7 {[%clk 0:00:09.3]} 63... Qg7+ {[%clk 0:00:14.8]} 64.
Ke8 {[%clk 0:00:09.8]} 64... Qg6+ {[%clk 0:00:14.9]} 65. Ke7 {[%clk 0:00:08.8]}
65... Qg5+ {[%clk 0:00:14.4]} 66. Kf8 {[%clk 0:00:09.6]} 66... Qd8+ {[%clk
0:00:14.7]} 67. Kf7 {[%clk 0:00:08.8]} 67... Qd7+ {[%clk 0:00:15.4]} 68. Kf6
{[%clk 0:00:08.7]} 68... Qd8+ {[%clk 0:00:16.5]} 69. Kf5 {[%clk 0:00:08.4]}
69... Qf8+ {[%clk 0:00:17]} 70. Ke4 {[%clk 0:00:09.3]} 70... Qe7+ {[%clk
0:00:17.4]} 71. Kf3 {[%clk 0:00:10.3]} 71... Qf6+ {[%clk 0:00:17.2]} 72. Ke2
{[%clk 0:00:11.3]} 72... Qg6 {[%clk 0:00:14.9]} 73. Qe3+ {[%clk 0:00:11]} 73...
Kb4 {[%clk 0:00:14.9]} 74. Qd4+ {[%clk 0:00:11.9]} 74... Ka5 {[%clk 0:00:15.4]}
75. Qc5+ {[%clk 0:00:07.5]} 75... Ka6 {[%clk 0:00:15.4]} 76. Kd2 {[%clk
0:00:04.5]} 76... Qh6+ {[%clk 0:00:15.7]} 77. Qe3 {[%clk 0:00:05.1]} 77... Qf6
{[%clk 0:00:15.7]} 78. Qa3+ {[%clk 0:00:03.9]} 78... Kb7 {[%clk 0:00:16.2]} 79.
Qb3+ {[%clk 0:00:04.7]} 79... Ka6 {[%clk 0:00:17]} 80. Qc3 {[%clk 0:00:04.8]}
80... Qg5+ {[%clk 0:00:16.9]} 81. Qe3 {[%clk 0:00:05]} 81... Qg2+ {[%clk
0:00:17.8]} 82. Kc3 {[%clk 0:00:06.3]} 82... Qg7+ {[%clk 0:00:17.2]} 83. Kb3
{[%clk 0:00:07.4]} 83... Qf7+ {[%clk 0:00:17.7]} 84. Kb2 {[%clk 0:00:08.9]}
84... Qf6+ {[%clk 0:00:18]} 85. Qc3 {[%clk 0:00:10.1]} 85... Qh6 {[%clk
0:00:18]} 86. Qc4+ {[%clk 0:00:09.7]} 86... Kb7 {[%clk 0:00:18.3]} 87. h4 {[%clk
0:00:11.2]} 87... Qf6+ {[%clk 0:00:18.5]} 88. Kb3 {[%clk 0:00:12.3]} 88... Qf3+
{[%clk 0:00:19.4]} 89. Ka2 {[%clk 0:00:13]} 89... Qd1 {[%clk 0:00:19.7]} 90. Qd3
{[%clk 0:00:09.7]} 90... Qg4 {[%clk 0:00:19.6]} 91. Qb3+ {[%clk 0:00:06.2]}
91... Kc7 {[%clk 0:00:19.6]} 92. Qf7+ {[%clk 0:00:07.3]} 92... Kb6 {[%clk
0:00:20.4]} 93. Qf6 {[%clk 0:00:07.2]} 93... Qa4+ {[%clk 0:00:20.3]} 94. Kb1
{[%clk 0:00:08.3]} 94... Qg4 {[%clk 0:00:21.1]} 95. Qg5 {[%clk 0:00:06.4]} 95...
Qd1+ {[%clk 0:00:21.5]} 96. Kb2 {[%clk 0:00:07.9]} 96... Qd4+ {[%clk 0:00:22.5]}
97. c3 {[%clk 0:00:08.7]} 97... Qf2+ {[%clk 0:00:21.2]} 98. Kb3 {[%clk
0:00:10.2]} 98... Qe1 {[%clk 0:00:21.6]} 99. Kc2 {[%clk 0:00:05.6]} 99... Qf2+
{[%clk 0:00:21.2]} 100. Kd3 {[%clk 0:00:05.9]} 100... Qf1+ {[%clk 0:00:21.6]}
101. Kd4 {[%clk 0:00:05.9]} 101... Qd1+ {[%clk 0:00:21.6]} 102. Kc4 {[%clk
0:00:05.5]} 102... Qf1+ {[%clk 0:00:21.6]} 103. Kb3 {[%clk 0:00:06.3]} 103...
Qb1+ {[%clk 0:00:22.4]} 104. Kc4 {[%clk 0:00:06.8]} 104... Qe4+ {[%clk
0:00:22.7]} 105. Kb3 {[%clk 0:00:08.3]} 105... Qb1+ {[%clk 0:00:23.8]} 106. Ka3
{[%clk 0:00:09.7]} 106... Qa1+ {[%clk 0:00:24.4]} 107. Kb4 {[%clk 0:00:10.4]}
107... Qb1+ {[%clk 0:00:25.2]} 108. Ka4 {[%clk 0:00:08]} 108... Qa2+ {[%clk
0:00:25.3]} 109. Kb4 {[%clk 0:00:09.3]} 109... Qb1+ {[%clk 0:00:26.4]} 110. Kc4
{[%clk 0:00:10.8]} 110... Qe4+ {[%clk 0:00:27.2]} 111. Kb3 {[%clk 0:00:11.3]}
1/2-1/2

[Event "GrandPrix_29.05"]
[Site "Chess.com"]
[Date "2020.05.29"]
[Round "4"]
[White "Evgeny81"]
[Black "Tyoma88888"]
[Result "1-0"]
[WhiteElo "2468"]
[BlackElo "2213"]
[TimeControl "600+2"]
[EndTime "11:06:21 PDT"]
[Termination "Evgeny81 won by resignation"]

1. d4 {[%clk 0:10:01.9]} 1... d5 {[%clk 0:10:00.6]} 2. c4 {[%clk 0:10:02.3]}
2... e6 {[%clk 0:10:01.9]} 3. Nf3 {[%clk 0:10:02.5]} 3... Nf6 {[%clk 0:10:03.4]}
4. g3 {[%clk 0:10:03]} 4... Be7 {[%clk 0:10:04.3]} 5. Bg2 {[%clk 0:10:03.2]}
5... O-O {[%clk 0:10:05.7]} 6. Qc2 {[%clk 0:10:04.1]} 6... c5 {[%clk 0:10:05.2]}
7. O-O {[%clk 0:10:04.5]} 7... cxd4 {[%clk 0:09:49.5]} 8. Nxd4 {[%clk
0:10:05.4]} 8... Na6 {[%clk 0:09:42.8]} 9. Rd1 {[%clk 0:09:32.9]} 9... Qb6
{[%clk 0:09:15.5]} 10. Nc3 {[%clk 0:09:06.3]} 10... Nb4 {[%clk 0:08:38.2]} 11.
Qb3 {[%clk 0:08:57.5]} 11... dxc4 {[%clk 0:07:55.9]} 12. Qxc4 {[%clk 0:08:53.5]}
12... e5 {[%clk 0:07:52.4]} 13. Nb3 {[%clk 0:07:49]} 13... Be6 {[%clk
0:06:28.1]} 14. Qb5 {[%clk 0:07:47.9]} 14... Qxb5 {[%clk 0:05:53.1]} 15. Nxb5
{[%clk 0:07:48.3]} 15... Nxa2 {[%clk 0:05:22.5]} 16. Na5 {[%clk 0:07:48.7]}
16... Nxc1 {[%clk 0:05:20.8]} 17. Rdxc1 {[%clk 0:07:30.1]} 17... Nd5 {[%clk
0:03:53.6]} 18. Nxb7 {[%clk 0:07:00.4]} 18... a6 {[%clk 0:03:07.4]} 19. Nc7
{[%clk 0:06:46.9]} 19... Nxc7 {[%clk 0:03:00.1]} 20. Rxc7 {[%clk 0:06:47.9]}
20... Bf6 {[%clk 0:02:21.6]} 21. Nc5 {[%clk 0:06:29.6]} 21... Rab8 {[%clk
0:02:19.1]} 22. Nxe6 {[%clk 0:06:08]} 22... fxe6 {[%clk 0:02:21]} 23. Bh3 {[%clk
0:04:44.7]} 23... Rxb2 {[%clk 0:02:02]} 24. Bxe6+ {[%clk 0:04:42.6]} 24... Kh8
{[%clk 0:02:03]} 25. Bc4 {[%clk 0:04:11.9]} 25... Rb6 {[%clk 0:01:04.6]} 26.
Rxa6 {[%clk 0:04:05.1]} 26... Rxa6 {[%clk 0:01:05.8]} 27. Bxa6 {[%clk
0:04:06.7]} 27... Rd8 {[%clk 0:01:06.4]} 28. Bd3 {[%clk 0:03:59.8]} 28... Rb8
{[%clk 0:00:51.1]} 29. Kg2 {[%clk 0:03:55.7]} 29... Re8 {[%clk 0:00:41]} 30. Kf3
{[%clk 0:03:46.3]} 30... Rf8 {[%clk 0:00:39.7]} 31. Ke4 {[%clk 0:03:44.4]} 31...
g6 {[%clk 0:00:24.5]} 32. h4 {[%clk 0:03:32.7]} 32... Bg7 {[%clk 0:00:22.1]} 33.
f3 {[%clk 0:03:27]} 33... Rd8 {[%clk 0:00:22]} 34. Ke3 {[%clk 0:03:00.7]} 34...
Bh6+ {[%clk 0:00:21.7]} 35. Kf2 {[%clk 0:03:01.4]} 35... Bg7 {[%clk 0:00:23.1]}
36. Be4 {[%clk 0:03:00.4]} 36... Rf8 {[%clk 0:00:22.7]} 37. Rb7 {[%clk
0:02:55.4]} 37... Rd8 {[%clk 0:00:23.5]} 38. g4 {[%clk 0:02:50.2]} 38... Rf8
{[%clk 0:00:22.3]} 39. Kg3 {[%clk 0:02:49.7]} 39... Rd8 {[%clk 0:00:22.4]} 40.
g5 {[%clk 0:02:25.8]} 40... Rf8 {[%clk 0:00:21]} 41. h5 {[%clk 0:02:25.3]} 41...
gxh5 {[%clk 0:00:19.9]} 42. Kh4 {[%clk 0:02:26.1]} 42... Rd8 {[%clk 0:00:18.9]}
43. Kxh5 {[%clk 0:02:25.4]} 43... Rf8 {[%clk 0:00:19.7]} 44. Rd7 {[%clk
0:02:06]} 44... Re8 {[%clk 0:00:19.6]} 45. Kg4 {[%clk 0:01:54]} 45... Rf8 {[%clk
0:00:20.8]} 46. Rd1 {[%clk 0:01:55]} 46... Rf4+ {[%clk 0:00:21.4]} 47. Kg3
{[%clk 0:01:55.7]} 47... Rf8 {[%clk 0:00:23.3]} 48. Rh1 {[%clk 0:01:55.7]} 48...
h6 {[%clk 0:00:12.6]} 49. Kf2 {[%clk 0:01:45.1]} 49... Rd8 {[%clk 0:00:10.7]}
50. gxh6 {[%clk 0:01:42.4]} 50... Bf8 {[%clk 0:00:10.7]} 51. Rh5 {[%clk
0:01:39.9]} 51... Re8 {[%clk 0:00:08]} 52. h7 {[%clk 0:01:27.1]} 52... Bc5+
{[%clk 0:00:08.2]} 53. Kg2 {[%clk 0:01:23.7]} 53... Bf8 {[%clk 0:00:08.2]} 54.
Rf5 {[%clk 0:01:12.9]} 54... Bg7 {[%clk 0:00:09.1]} 55. Rf7 {[%clk 0:01:13.7]}
55... Rd8 {[%clk 0:00:09.2]} 56. Rb7 {[%clk 0:01:12.2]} 56... Rf8 {[%clk
0:00:09.9]} 57. Kh3 {[%clk 0:01:11]} 57... Re8 {[%clk 0:00:04.2]} 58. Kg4 {[%clk
0:01:10.7]} 58... Rf8 {[%clk 0:00:05.3]} 59. Kg5 {[%clk 0:01:11.4]} 59... Rd8
{[%clk 0:00:06.5]} 60. Kg6 {[%clk 0:01:08.6]} 60... Rd6+ {[%clk 0:00:07.6]} 61.
Kf7 {[%clk 0:01:08.8]} 61... Rf6+ {[%clk 0:00:08.7]} 62. Ke7 {[%clk 0:01:09.4]}
62... Rf8 {[%clk 0:00:08.5]} 63. Ke6 {[%clk 0:01:04.6]} 63... Re8+ {[%clk
0:00:09.4]} 64. Kd7 {[%clk 0:01:00.5]} 64... Rf8 {[%clk 0:00:10.5]} 65. Bg6
{[%clk 0:00:56]} 65... Rf6 {[%clk 0:00:06.9]} 66. Rb8+ {[%clk 0:00:52.8]} 66...
Rf8 {[%clk 0:00:08]} 67. Rb5 {[%clk 0:00:48.7]} 67... Rf6 {[%clk 0:00:07.7]} 68.
Be4 {[%clk 0:00:46.5]} 68... Rf7+ {[%clk 0:00:08.3]} 69. Ke6 {[%clk 0:00:46.2]}
69... Rf8 {[%clk 0:00:10.2]} 70. Ke7 {[%clk 0:00:44.9]} 70... Rc8 {[%clk
0:00:08.7]} 71. Rd5 {[%clk 0:00:34]} 71... Rf8 {[%clk 0:00:09.4]} 72. Rd1 {[%clk
0:00:32.1]} 72... Rb8 {[%clk 0:00:09.8]} 73. Ke6 {[%clk 0:00:29.3]} 73... Re8+
{[%clk 0:00:10.7]} 74. Kf7 {[%clk 0:00:29.1]} 74... Rf8+ {[%clk 0:00:12.6]} 75.
Ke7 {[%clk 0:00:30.5]} 75... Rc8 {[%clk 0:00:13]} 76. Rh1 {[%clk 0:00:21.7]}
76... Rf8 {[%clk 0:00:10.8]} 77. Rh5 {[%clk 0:00:21.7]} 77... Rc8 {[%clk
0:00:11.3]} 78. Ke6 {[%clk 0:00:14.7]} 78... Re8+ {[%clk 0:00:12.1]} 79. Kd7
{[%clk 0:00:15.7]} 79... Rf8 {[%clk 0:00:14]} 80. Rh2 {[%clk 0:00:13.7]} 80...
Rf7+ {[%clk 0:00:15.2]} 81. Ke6 {[%clk 0:00:14.3]} 81... Rf8 {[%clk 0:00:17.1]}
82. Rg2 {[%clk 0:00:15.4]} 82... Re8+ {[%clk 0:00:18.4]} 83. Kf7 {[%clk
0:00:15.8]} 83... Rf8+ {[%clk 0:00:19.2]} 84. Ke7 {[%clk 0:00:17.1]} 84... Rc8
{[%clk 0:00:17.5]} 85. Kd6 {[%clk 0:00:17.3]} 85... Rd8+ {[%clk 0:00:18.4]} 86.
Ke6 {[%clk 0:00:17.2]} 86... Re8+ {[%clk 0:00:19.6]} 87. Kd7 {[%clk 0:00:16]}
87... Rf8 {[%clk 0:00:20]} 88. Rg4 {[%clk 0:00:15.7]} 88... Rf7+ {[%clk
0:00:20.6]} 89. Kd6 {[%clk 0:00:16.2]} 89... Rf8 {[%clk 0:00:21.4]} 90. Rxg7
{[%clk 0:00:14.9]} 90... Kxg7 {[%clk 0:00:22.7]} 91. Kxe5 {[%clk 0:00:16.1]}
91... Re8+ {[%clk 0:00:24.2]} 92. Kf4 {[%clk 0:00:16.5]} 92... Rb8 {[%clk
0:00:24.8]} 93. Bd3 {[%clk 0:00:17]} 93... Rf8+ {[%clk 0:00:26.7]} 94. Kg3
{[%clk 0:00:17.9]} 94... Rd8 {[%clk 0:00:26.3]} 95. f4 {[%clk 0:00:18.4]} 95...
Ra8 {[%clk 0:00:23.4]} 96. Kg4 {[%clk 0:00:17.4]} 96... Rd8 {[%clk 0:00:24.3]}
97. Bf5 {[%clk 0:00:16.1]} 97... Rd1 {[%clk 0:00:21]} 98. e4 {[%clk 0:00:15.9]}
98... Rg1+ {[%clk 0:00:22]} 99. Kf3 {[%clk 0:00:17]} 99... Rf1+ {[%clk
0:00:23.1]} 100. Ke3 {[%clk 0:00:18.2]} 100... Rh1 {[%clk 0:00:16]} 101. e5
{[%clk 0:00:17.4]} 101... Re1+ {[%clk 0:00:10.5]} 102. Kd4 {[%clk 0:00:16.7]}
102... Rf1 {[%clk 0:00:10.1]} 103. Ke4 {[%clk 0:00:14.9]} 103... Re1+ {[%clk
0:00:10.7]} 104. Kf3 {[%clk 0:00:16]} 104... Rf1+ {[%clk 0:00:11]} 105. Ke3
{[%clk 0:00:17.2]} 105... Re1+ {[%clk 0:00:09.1]} 106. Kf2 {[%clk 0:00:17.9]}
106... Rh1 {[%clk 0:00:07.8]} 107. Be4 {[%clk 0:00:17.3]} 107... Ra1 {[%clk
0:00:05.2]} 108. Bd3 {[%clk 0:00:15.9]} 108... Ra2+ {[%clk 0:00:03]} 109. Ke3
{[%clk 0:00:17]} 109... Ra3 {[%clk 0:00:04.9]} 110. Kd4 {[%clk 0:00:17.2]}
110... Ra4+ {[%clk 0:00:06.3]} 111. Ke3 {[%clk 0:00:16]} 111... Ra3 {[%clk
0:00:07.6]} 112. Kd4 {[%clk 0:00:07.9]} 112... Ra4+ {[%clk 0:00:08.5]} 113. Bc4
{[%clk 0:00:09.3]} 113... Kxh7 {[%clk 0:00:09.4]} 114. f5 {[%clk 0:00:08.5]}
114... Kg7 {[%clk 0:00:10.5]} 115. Kd5 {[%clk 0:00:08.7]} 115... Ra5+ {[%clk
0:00:11.3]} 116. Kd6 {[%clk 0:00:10.1]} 116... Ra1 {[%clk 0:00:06.6]} 117. f6+
{[%clk 0:00:06.9]} 117... Kg6 {[%clk 0:00:06.9]} 118. Ke6 {[%clk 0:00:08]}
118... Ra8 {[%clk 0:00:02.8]} 119. Bd3+ {[%clk 0:00:08.4]} 119... Kg5 {[%clk
0:00:03]} 120. Ke7 {[%clk 0:00:07.2]} 120... Ra7+ {[%clk 0:00:03]} 121. Kd6
{[%clk 0:00:08]} 121... Ra8 {[%clk 0:00:03.8]} 122. Bc2 {[%clk 0:00:05]} 122...
Rb8 {[%clk 0:00:03]} 123. Be4 {[%clk 0:00:05.5]} 123... Ra8 {[%clk 0:00:03.7]}
124. Bxa8 {[%clk 0:00:06]} 1-0

[Event "GrandPrix_29.05"]
[Site "Chess.com"]
[Date "2020.05.29"]
[Round "5"]
[White "Pultis"]
[Black "Koalaskakistis"]
[Result "1-0"]
[WhiteElo "2261"]
[BlackElo "2064"]
[TimeControl "600+2"]
[EndTime "11:12:24 PDT"]
[Termination "Pultis won by resignation"]

1. d4 {[%clk 0:10:01.9]} 1... f5 {[%clk 0:10:00.8]} 2. g3 {[%clk 0:09:59.7]}
2... Nf6 {[%clk 0:10:01.3]} 3. Nh3 {[%clk 0:10:00.6]} 3... d6 {[%clk 0:10:01.3]}
4. d5 {[%clk 0:09:59.8]} 4... c6 {[%clk 0:09:57.1]} 5. c4 {[%clk 0:09:59.6]}
5... Na6 {[%clk 0:09:23.3]} 6. Nf4 {[%clk 0:09:48.5]} 6... cxd5 {[%clk
0:09:20.2]} 7. cxd5 {[%clk 0:09:47.8]} 7... Nc7 {[%clk 0:09:13.2]} 8. Nc3 {[%clk
0:09:46.4]} 8... g5 {[%clk 0:08:44.5]} 9. Ne6 {[%clk 0:09:29.3]} 9... Nxe6
{[%clk 0:08:30.6]} 10. dxe6 {[%clk 0:09:31.2]} 10... h6 {[%clk 0:08:28.3]} 11.
Qa4+ {[%clk 0:09:29.3]} 1-0

[Event "GrandPrix_29.05"]
[Site "Chess.com"]
[Date "2020.05.29"]
[Round "5"]
[White "Rikikits"]
[Black "Msb2"]
[Result "1/2-1/2"]
[WhiteElo "2743"]
[BlackElo "2647"]
[TimeControl "600+2"]
[EndTime "11:13:00 PDT"]
[Termination "Game drawn by agreement"]

1. b3 {[%clk 0:10:01.9]} 1... d5 {[%clk 0:09:58.8]} 2. Bb2 {[%clk 0:10:02.9]}
2... Bf5 {[%clk 0:09:59.7]} 3. e3 {[%clk 0:10:03.4]} 3... e6 {[%clk 0:10:00.9]}
4. f4 {[%clk 0:09:59.4]} 4... Nf6 {[%clk 0:10:00.4]} 5. Nf3 {[%clk 0:10:00.6]}
5... h6 {[%clk 0:10:00.5]} 6. Bd3 {[%clk 0:09:59.9]} 6... Bxd3 {[%clk 0:09:53]}
7. cxd3 {[%clk 0:10:01.8]} 7... c5 {[%clk 0:09:53.3]} 8. O-O {[%clk 0:09:47.6]}
8... Nc6 {[%clk 0:09:53.8]} 9. Ne5 {[%clk 0:09:46.6]} 9... Rc8 {[%clk
0:09:36.1]} 10. d4 {[%clk 0:09:38.8]} 10... cxd4 {[%clk 0:09:27.6]} 11. Nxc6
{[%clk 0:09:38.4]} 11... Rxc6 {[%clk 0:09:29.5]} 12. Bxd4 {[%clk 0:09:39.3]}
12... Bc5 {[%clk 0:09:31.2]} 13. Bxc5 {[%clk 0:09:19.7]} 13... Rxc5 {[%clk
0:09:33.1]} 14. Nc3 {[%clk 0:08:51.5]} 1/2-1/2

[Event "GrandPrix_29.05"]
[Site "Chess.com"]
[Date "2020.05.29"]
[Round "5"]
[White "titan013"]
[Black "Kostya_Nikologorskiy"]
[Result "1-0"]
[WhiteElo "2362"]
[BlackElo "2238"]
[TimeControl "600+2"]
[EndTime "11:15:05 PDT"]
[Termination "titan013 won by resignation"]

1. e4 {[%clk 0:10:01.9]} 1... e6 {[%clk 0:10:00.5]} 2. d4 {[%clk 0:10:02.7]}
2... d5 {[%clk 0:10:01.7]} 3. Nc3 {[%clk 0:10:03.5]} 3... Bb4 {[%clk 0:10:02.5]}
4. exd5 {[%clk 0:10:04.4]} 4... exd5 {[%clk 0:10:00.2]} 5. Bd3 {[%clk
0:10:05.6]} 5... Nc6 {[%clk 0:09:57.4]} 6. a3 {[%clk 0:10:06.3]} 6... Be7 {[%clk
0:09:42.8]} 7. Nf3 {[%clk 0:10:00.9]} 7... Bg4 {[%clk 0:09:41.5]} 8. Be3 {[%clk
0:10:01]} 8... Qd7 {[%clk 0:09:33.9]} 9. h3 {[%clk 0:10:01.7]} 9... Bh5 {[%clk
0:09:30.6]} 10. Qe2 {[%clk 0:09:53.7]} 10... O-O-O {[%clk 0:09:26.3]} 11. O-O-O
{[%clk 0:09:54.1]} 11... Re8 {[%clk 0:08:58]} 12. g4 {[%clk 0:09:54.5]} 12...
Bg6 {[%clk 0:08:57.9]} 13. Ne5 {[%clk 0:09:52.4]} 13... Bxd3 {[%clk 0:08:42.2]}
14. Qxd3 {[%clk 0:09:49.9]} 14... Qe6 {[%clk 0:08:17.4]} 15. f4 {[%clk
0:09:50.1]} 15... f6 {[%clk 0:08:18.4]} 16. f5 {[%clk 0:09:40]} 16... Nxe5
{[%clk 0:08:18.7]} 17. dxe5 {[%clk 0:09:41]} 17... Qxe5 {[%clk 0:08:19.1]} 18.
Nxd5 {[%clk 0:09:42]} 18... c6 {[%clk 0:08:03.2]} 19. Nb6+ {[%clk 0:08:50]}
19... axb6 {[%clk 0:07:44.6]} 20. Qd7+ {[%clk 0:08:49.6]} 20... Kb8 {[%clk
0:07:45.9]} 21. Qxe8+ {[%clk 0:08:50.5]} 21... Ka7 {[%clk 0:07:47.3]} 22. Rhe1
{[%clk 0:08:47.5]} 1-0

[Event "GrandPrix_29.05"]
[Site "Chess.com"]
[Date "2020.05.29"]
[Round "5"]
[White "bratkoo"]
[Black "Poghosyan_Suren"]
[Result "1-0"]
[WhiteElo "2143"]
[BlackElo "2099"]
[TimeControl "600+2"]
[EndTime "11:15:50 PDT"]
[Termination "bratkoo won by resignation"]

1. e4 {[%clk 0:09:57.8]} 1... e6 {[%clk 0:09:56]} 2. d4 {[%clk 0:09:58.2]} 2...
d5 {[%clk 0:09:54.2]} 3. Nd2 {[%clk 0:09:59.2]} 3... Be7 {[%clk 0:09:54.1]} 4.
Ngf3 {[%clk 0:09:59.5]} 4... Nf6 {[%clk 0:09:55.1]} 5. e5 {[%clk 0:09:59.9]}
5... Nfd7 {[%clk 0:09:56.1]} 6. Bd3 {[%clk 0:10:00.3]} 6... c5 {[%clk
0:09:57.2]} 7. c3 {[%clk 0:10:01.5]} 7... Nc6 {[%clk 0:09:58]} 8. O-O {[%clk
0:10:00.9]} 8... g5 {[%clk 0:09:59.1]} 9. dxc5 {[%clk 0:09:56.9]} 9... g4 {[%clk
0:09:59.6]} 10. Nd4 {[%clk 0:09:56.8]} 10... Ndxe5 {[%clk 0:10:00.8]} 11. N2b3
{[%clk 0:09:55.3]} 11... Nxd3 {[%clk 0:09:34.1]} 12. Qxd3 {[%clk 0:09:55.6]}
12... e5 {[%clk 0:09:35.4]} 13. Nxc6 {[%clk 0:09:46.7]} 13... bxc6 {[%clk
0:09:37.3]} 14. Re1 {[%clk 0:09:47.2]} 14... Qc7 {[%clk 0:09:01.6]} 15. Qg3
{[%clk 0:09:39.7]} 15... f6 {[%clk 0:08:58.3]} 16. Bh6 {[%clk 0:09:32.4]} 16...
a5 {[%clk 0:08:54.5]} 17. Rad1 {[%clk 0:09:19.6]} 17... a4 {[%clk 0:08:25.3]}
18. Nd4 {[%clk 0:09:19.1]} 18... Bxc5 {[%clk 0:08:25.9]} 19. Qh4 {[%clk
0:09:15.3]} 19... Ra6 {[%clk 0:08:05.7]} 20. Qxf6 {[%clk 0:09:12.7]} 20... Rg8
{[%clk 0:06:20.6]} 21. Rxe5+ {[%clk 0:09:11.9]} 21... Be7 {[%clk 0:06:19.8]} 22.
Rde1 {[%clk 0:09:10.4]} 22... c5 {[%clk 0:06:20.1]} 23. Rxe7+ {[%clk 0:09:10.2]}
1-0

[Event "GrandPrix_29.05"]
[Site "Chess.com"]
[Date "2020.05.29"]
[Round "5"]
[White "VincentKeymer"]
[Black "mikolka1985"]
[Result "1-0"]
[WhiteElo "2492"]
[BlackElo "2381"]
[TimeControl "600+2"]
[EndTime "11:16:28 PDT"]
[Termination "VincentKeymer won by resignation"]

1. Nf3 {[%clk 0:10:01]} 1... Nf6 {[%clk 0:09:56.4]} 2. c4 {[%clk 0:10:00.9]}
2... b6 {[%clk 0:09:44.5]} 3. d4 {[%clk 0:09:55.1]} 3... e6 {[%clk 0:09:43.9]}
4. g3 {[%clk 0:09:55.9]} 4... Bb7 {[%clk 0:09:42.7]} 5. Bg2 {[%clk 0:09:56.7]}
5... Be7 {[%clk 0:09:43.7]} 6. O-O {[%clk 0:09:57.7]} 6... O-O {[%clk
0:09:45.1]} 7. Nc3 {[%clk 0:09:59.3]} 7... Ne4 {[%clk 0:09:44.7]} 8. Bd2 {[%clk
0:10:00.8]} 8... f5 {[%clk 0:09:41.5]} 9. Ne5 {[%clk 0:10:00.2]} 9... Bf6 {[%clk
0:09:41.6]} 10. Nxe4 {[%clk 0:09:56.6]} 10... Bxe4 {[%clk 0:09:40.9]} 11. f3
{[%clk 0:09:36.7]} 11... Bb7 {[%clk 0:09:38.8]} 12. Bc3 {[%clk 0:09:26.5]} 12...
d6 {[%clk 0:09:33.3]} 13. Nd3 {[%clk 0:09:27]} 13... Nd7 {[%clk 0:08:44.9]} 14.
e4 {[%clk 0:09:10.1]} 14... fxe4 {[%clk 0:08:43.2]} 15. fxe4 {[%clk 0:09:12]}
15... c5 {[%clk 0:08:26.1]} 16. Nf4 {[%clk 0:08:58.9]} 16... Qe7 {[%clk
0:08:25]} 17. e5 {[%clk 0:08:36.5]} 1-0